Cogmind - Beta 13 @@@ ROGUE MODE // 2024.05.08 @ 23:43:54 Player: Olafz Result: Destroyed by P-80 Master with Gamma Rifle Performance ------------- Evolutions (8) 4000 Regions Visited (19) 3800 Robots Destroyed (185) 925 Value Destroyed (8408) 8408 Prototype IDs (39) 780 Alien Tech Used (0) 0 Bonus (5594) 5594 TOTAL SCORE: 23507 Bonus ------- High Alert Combat Kills 1313 Follower Combat Kills 948 Entered Garrisons 800 Used RIF Installer 2500 Aligned with FarCom 300 Friendly Fire -267 Cogmind --------- Core Integrity 0/1450 Matter 38/300 Energy 2/100 System Corruption 4% Temperature Cool (0) Movement Hovering (56) Location -2/Research Parts ------- > --- POWER (2) -------- (None) > --- PROPULSION (6) --- Improved Gyrokinetic Inverter Antigrav Array Antigrav Array > --- UTILITY (11) ----- Advanced Cryofiber Web High-capacity Storage Unit Enhanced Optical Array Targeting Computer Advanced Targeting Computer Advanced Target Analyzer Advanced Target Analyzer > --- WEAPON (4) ------- Chainsword > --- INVENTORY (20) --- High-density Centrium Leg Improved Gyrokinetic Inverter Improved Gyrokinetic Inverter Antigrav Array Antigrav Array Antigrav Array Antigrav Array Heavy Phase Cannon Peak State ------------ > --- POWER ------------ Light Antimatter Reactor Particle Reactor > --- PROPULSION ------- Heavy Treads Biometal Medium Treads Armored Huge Wheel High-density Centrium Wheel > --- UTILITY ---------- Advanced Cryofiber Web Advanced Heat Sink High-capacity Storage Unit Enhanced Optical Array Targeting Computer Advanced Target Analyzer Advanced Particle Charger Hacking Suite Improved Dynamic Insulation System Advanced Corruption Screen > --- WEAPON ----------- Quantum Rifle Quantum Rifle Precision Phase Gun Ripper > --- INVENTORY -------- Light Antimatter Reactor Micro Antimatter Reactor Field Propulsion Drive Diametric Drive Diametric Drive Impulse Thruster Array Large Storage Unit Compact Matter Pod Advanced Weight Redist. System Phase Shifter Insulated Plating Advanced Hardlight Generator Enhanced Force Rifle Heavy Phase Cannon Nova Cannon Heavy Gauss Cannon Enhanced Force Lance [Rating: 142] Favorites ----------- Power Micro Fission Core Engine F-cell Engine Power Core Micro Fission Core Reactor Light Antimatter Reactor Propulsion Light Treads Treads Light Treads Leg Aluminum Leg Wheel Armored Huge Wheel Hover Unit Improved Gyrokinetic Inverter Flight Unit Biomechanical Wings Utility High-capacity Storage Unit Device Structural Scanner Storage High-capacity Storage Unit Processor Advanced Targeting Computer Hackware Relay Coupler [Hunter] Protection Layered Medium Armor Plating Weapon Autogun Energy Gun Heavy Laser Energy Cannon Long-range Proton Cannon Ballistic Gun Autogun Ballistic Cannon Linear Accelerator Launcher EMP Blaster Special Weapon Advanced Remote Datajack Impact Weapon Great Maul Slashing Weapon Scythe Piercing Weapon Enhanced Force Lance Build | -11 -10 -10 -10 -9 -8 -8 -8 -8 -7 -7 -6 -6 -5 -5 -4 -4 -4 -3 -2 ------- Run | Yrd Mat Min Exi Min Mat Gar Mat Gar Fac Gar Fac Gar Fac Ext Fac Upp Upp Res Res Slots Evolved 16 | . . . . . 4 . . . 2 . 2 . 2 . 2 . . 2 2 Power 1 | . . . . . . . . . . . . . . . . . . 1 . Propulsion 4 | . . . . . 2 . . . . . . . . . 2 . . . . Utility 9 | . . . . . 2 . . . 1 . 2 . 2 . . . . 1 1 Weapon 2 | . . . . . . . . . 1 . . . . . . . . . 1 Parts Attached 378 | . 11 9 . . 8 31 3 28 10 4 1 40 39 61 23 5 . 58 47 Power 41 | . 2 2 . . 2 1 . 3 . . . 4 5 3 2 . . 10 7 Engine 16 | . 2 1 . . 1 1 . . . . . 1 5 2 2 . . 1 . Core 8 | . . 1 . . 1 . . 3 . . . 2 . 1 . . . . . Reactor 17 | . . . . . . . . . . . . 1 . . . . . 9 7 Propulsion 101 | . 3 4 . . 2 13 1 7 4 . . 12 9 19 3 . . 8 16 Treads 28 | . . . . . . 6 1 7 4 . . 6 . . . . . 3 1 Leg 48 | . 3 4 . . 2 7 . . . . . 6 4 19 3 . . . . Wheel 4 | . . . . . . . . . . . . . . . . . . 3 1 Hover 12 | . . . . . . . . . . . . . 2 . . . . 2 8 Flight 9 | . . . . . . . . . . . . . 3 . . . . . 6 Utility 122 | . 3 . . . 2 5 2 5 2 3 . 11 11 20 11 1 . 28 18 Device 70 | . 1 . . . 1 3 2 5 1 2 . 6 7 10 6 1 . 18 7 Storage 9 | . 1 . . . 1 . . . . . . . 1 1 1 . . 1 3 Processor 20 | . 1 . . . . 1 . . . . . 2 2 5 2 . . 3 4 Hackware 8 | . . . . . . . . . 1 . . 3 . . . . . 2 2 Protection 15 | . . . . . . 1 . . . 1 . . 1 4 2 . . 4 2 Artifact . | . . . . . . . . . . . . . . . . . . . . Weapon 114 | . 3 3 . . 2 12 . 13 4 1 1 13 14 19 7 4 . 12 6 Energy Gun 42 | . 1 . . . 2 5 . 2 2 1 . 9 5 6 . 2 . 5 2 Energy Cannon 8 | . . . . . . . . 1 . . . . 1 3 1 . . 2 . Ballistic Gun 28 | . 2 2 . . . 3 . 5 1 . . . 5 6 4 . . . . Ballistic Cannon 5 | . . . . . . . . . . . . . . 1 1 . . 2 1 Launcher 5 | . . 1 . . . . . 1 . . . 2 1 . . . . . . Special Weapon 2 | . . . . . . . . . . . . 1 . . . . . 1 . Impact Weapon 8 | . . . . . . . . . . . 1 1 1 2 1 2 . . . Slashing Weapon 14 | . . . . . . 4 . 4 1 . . . 1 1 . . . 1 2 Piercing Weapon 2 | . . . . . . . . . . . . . . . . . . 1 1 Special Melee Weapon . | . . . . . . . . . . . . . . . . . . . . Unidentified Prototypes 9 | . . . . . . . . . . . . 1 1 . 2 . . 4 1 Corrupted Parts 6 | . . . . . . . . . . . . 3 . 3 . . . . . System Corruption 28 | . . . . . . . . . . . . 14 . 14 . . . . . Parts Lost 126 | . 1 2 . . 1 9 . 3 3 1 . 13 26 15 . . . 11 41 Power 15 | . . . . . . 1 . . . . . 1 4 1 . . . 2 6 Propulsion 45 | . 1 . . . . 5 . 1 1 . . 5 9 4 . . . 6 13 Utility 39 | . . . . . . 2 . 1 1 1 . 5 8 5 . . . 1 15 Weapon 27 | . . 2 . . 1 1 . 1 1 . . 2 5 5 . . . 2 7 Highest Loss Streak 19 | . 1 2 . . 1 3 . 1 1 1 . 7 18 7 . . . 3 19 To Critical Strikes 2 | . . . . . . 1 . . . . . . . . . . . . 1 Average Slot Usage (%) 93 | . 98 99 100 100 98 95 99 99 96 97 86 88 84 85 97 100 100 89 72 Engine 3 | . 14 8 . . 1 . 9 . . . . . 2 2 5 5 5 4 . Core 4 | . . 5 14 14 6 8 . 8 7 7 6 5 . 2 . . . . . Reactor 1 | . . . . . . . . . . . . . 2 . . . . 4 5 Treads 11 | . . . . . . 13 36 36 30 30 26 23 . . . . . 3 4 Leg 14 | . 27 28 28 28 36 21 . . . . . 1 19 19 31 31 31 13 . Device 15 | . 11 14 14 14 17 15 17 17 18 16 13 12 22 13 14 13 15 18 13 Storage 8 | . 14 14 14 14 17 15 9 9 7 7 6 6 4 4 . 5 5 4 3 Processor 10 | . 2 . . . . . 9 9 7 7 6 12 11 18 26 23 21 18 17 Hackware 1 | . . . . . . . . . 1 2 . 3 2 . . . . . 4 Protection 1 | . . . . . . 2 . . . 1 6 . . 3 5 5 5 2 . Energy Gun 5 | . . . . . 6 8 9 6 8 15 13 12 5 4 . 6 10 5 5 Ballistic Gun 7 | . 27 21 28 28 11 8 9 7 4 . . . 4 4 5 2 . . . Impact Weapon 1 | . . . . . . . . . . . 1 5 3 . 4 5 5 2 . Slashing Weapon 1 | . . . . . . 1 . 2 4 7 4 . . . . . . . 2 Naked Turns . | . . . . . . . . . . . . . . . . . . . . Heaviest Build 117 | 11 52 53 52 52 60 60 55 64 68 61 63 66 84 67 63 63 58 105 117 Greatest Support 142 | 20 20 20 20 20 40 80 80 87 87 87 87 93 93 70 108 108 108 142 133 Greatest Overweight (x) 5 | . 5 2 2 2 1 5 . . . . . 1 1 1 . . . 4 5 Average Overweight (x) . | . 1 2 2 2 1 . . . . . . . . . . . . . . Largest Inventory Capacity 20 | . 20 20 20 20 20 20 20 20 20 20 20 20 20 15 15 15 15 20 20 Average Capacity 18 | . 17 20 20 20 20 20 20 20 20 20 20 20 18 13 6 15 15 19 15 Most Carried 20 | . 18 20 20 20 20 20 20 20 20 20 20 20 20 15 14 15 14 20 20 Average Carried 17 | . 11 19 19 19 17 19 19 19 19 19 20 19 16 12 5 14 14 18 14 Final Capacity 20 | 8 20 20 20 20 20 20 20 20 20 20 20 20 20 5 15 15 15 20 20 Final Carried 20 | 6 18 20 20 20 20 20 20 20 20 20 20 20 20 5 14 14 14 20 12 Class Distribution -------------------- 50% | Scavenger-Mutant 16% | Mutant 16% | Scavenger-Assassin 5% | Scavenger-Gunner 5% | Scavenger-Skirmisher Dominant Class ---------------- Mutant | -10/Materials Scavenger-Mutant | -10/Mines Scavenger-Mutant | -10/Exiles Scavenger-Mutant | -9/Mines Scavenger-Mutant | -8/Materials Scavenger-Mutant | -8/Garrison Scavenger-Skirmisher | -8/Materials Scavenger-Mutant | -8/Garrison Scavenger-Mutant | -7/Factory Mutant | -7/Garrison Mutant | -6/Factory Scavenger-Mutant | -6/Garrison Scavenger-Mutant | -5/Factory Scavenger-Skirmisher | -5/Extension Scavenger-Assassin | -4/Factory Scavenger-Mutant | -4/Upper Caves Scavenger-Mutant | -4/Upper Caves Scavenger-Assassin | -3/Research Hacker-Mutant | -2/Research Resources | -11 -10 -10 -10 -9 -8 -8 -8 -8 -7 -7 -6 -6 -5 -5 -4 -4 -4 -3 -2 ----------- Run | Yrd Mat Min Exi Min Mat Gar Mat Gar Fac Gar Fac Gar Fac Ext Fac Upp Upp Res Res Matter Collected 6374 | 199 542 327 41 36 12 525 151 470 202 83 . 546 526 1197 269 59 . 980 209 Remotely 335 | . . . . . . . . . . . . . 335 . . . . . . Salvage Created 8435 | . 542 465 . . 118 611 263 749 337 248 . 1084 812 1388 269 . . 1205 344 Parts 421 | . 36 26 . . 7 39 10 44 15 11 . 39 50 57 10 . . 57 20 Haulers Intercepted 2 | . . . . . . . 1 . . . . . . . 1 . . . . Recyclers Shooed 3 | . 2 . . . . . . . . . . . . . 1 . . . . Parts Field Recycled . | . . . . . . . . . . . . . . . . . . . . Retrieved Matter . | . . . . . . . . . . . . . . . . . . . . Parts Self-Destructed . | . . . . . . . . . . . . . . . . . . . . Prevented . | . . . . . . . . . . . . . . . . . . . . Kills | -11 -10 -10 -10 -9 -8 -8 -8 -8 -7 -7 -6 -6 -5 -5 -4 -4 -4 -3 -2 ------- Run | Yrd Mat Min Exi Min Mat Gar Mat Gar Fac Gar Fac Gar Fac Ext Fac Upp Upp Res Res Combat Hostiles Destroyed 162 | . 13 10 . . 4 17 4 18 7 6 . 23 13 21 3 . . 18 5 Melee 12 | . . . . . . . . 3 . . . . 2 3 2 . . 1 1 Guns 115 | . 13 8 . . 4 17 4 13 6 5 . 13 10 9 1 . . 9 3 Cannons 16 | . . . . . . . . 2 . . . . . 8 . . . 6 . AOE 8 | . . 2 . . . . . . . . . 5 1 . . . . . . Classes Destroyed 19 | . 5 2 . . 2 2 1 2 . . . 1 3 1 . . . . . Worker 5 | . . 2 . . . . . . 1 . . . 2 . . . . . . Builder 2 | . 1 . . . . . . . . . . . . 1 . . . . . Tunneler 1 | . . . . . . . . . . . . . 1 . . . . . . Hauler 2 | . . . . . . . 1 . . . . . . . 1 . . . . Recycler 1 | . 1 . . . . . . . . . . . . . . . . . . Mechanic 1 | . . . . . . . . . . . . . 1 . . . . . . Operator 2 | . . . . . . . . . . . . . . 1 1 . . . . Watcher 8 | . 3 . . . . . . . 1 . . . . 2 . . . 2 . Swarmer 28 | . 5 . . . 2 7 . 3 3 . . 4 4 . . . . . . Cutter 5 | . . . . . . . . 2 . . . 3 . . . . . . . Saboteur 5 | . . . . . . . . . . . . 3 1 1 . . . . . Grunt 52 | . 8 9 . . . 4 1 7 . 2 . 8 4 7 . . . 2 . Brawler 1 | . . . . . . 1 . . . . . . . . . . . . . Duelist 3 | . . . . . . 1 1 . . . . . . 1 . . . . . Sentry 32 | . . . . . 1 4 2 4 3 1 . 5 1 4 1 . . 4 2 Hunter 7 | . . . . . 1 . . . . . . . 1 1 . . . 4 . Programmer 22 | . . . . . . . . 2 1 3 . . 2 1 2 . . 8 3 Heavy 1 | . . . . . . . . . . . . . 1 . . . . . . Assembled 1 | . . 1 . . . . . . . . . . . . . . . . . Thug 3 | . . . . . . . . . . . . . . 3 . . . . . Butcher 2 | . . . . . . . . . . . . . . 2 . . . . . Guerrilla 2 | . . . . . . . . . . . . . . 2 . . . . . Best Kill Streak 7 | . 5 6 . . 2 3 2 3 4 3 . 7 6 4 2 . . 4 2 Combat Bots Only 7 | . 5 6 . . 2 3 2 3 3 3 . 7 4 4 2 . . 4 2 Max Kills in Single Turn 3 | . 1 1 . . 1 1 1 1 3 1 . 3 3 2 1 . . 1 1 Gunslinging 1 | . . . . . . . . . 1 . . . . . . . . . . Exploded 2 | . . 1 . . . . . . . . . 2 1 . . . . . . Melee 1 | . . . . . . . . 1 . . . . 1 1 1 . . 1 1 Uniques/NPCs Destroyed . | . . . . . . . . . . . . . . . . . . . . Combat | -11 -10 -10 -10 -9 -8 -8 -8 -8 -7 -7 -6 -6 -5 -5 -4 -4 -4 -3 -2 -------- Run | Yrd Mat Min Exi Min Mat Gar Mat Gar Fac Gar Fac Gar Fac Ext Fac Upp Upp Res Res Hostile Shots Fired 1964 | . 63 41 . . 27 114 16 115 106 94 . 349 197 183 33 . . 288 338 Missed 651 | . 14 11 . . 6 31 7 31 51 36 . 118 71 58 10 . . 108 99 Damage Taken 22220 | . 490 356 . . 307 1225 167 1160 600 589 . 2651 2964 2562 479 . . 3536 5134 Core 3945 | . 112 21 . . 87 142 . 111 64 53 . 316 654 307 99 . . 528 1451 Absorbed by Shields 560 | . . . . . . . . . . . . . 112 . . . . . 448 Reduced by Siege Mode 59 | . . . . . . . . . . . . . . . . . . 59 . Redirected to Shielding 211 | . . . . . . 106 . . . . . . 4 38 . . . 63 . Ignored by Resistances 20 | . . . . . . . . . . . . . . . . . . . 20 Regen/Repaired (Parts) 108 | . . . . . . . 19 . . . . . 89 . . . . . . Core Remaining (%) 60 | 100 . . . 46 . . . 38 . 83 . 62 . 3 . . 91 59 . Volleys Fired 632 | . 61 31 . . 16 57 25 54 25 23 . 81 32 106 7 . . 101 13 Largest 3 | . 2 2 . . 2 2 2 2 2 2 . 2 3 3 2 . . 2 3 Hottest 282 | . 46 56 . . 88 88 79 114 161 149 . 155 169 225 110 . . 182 282 Shots Fired 1263 | . 122 49 . . 32 114 51 101 48 47 . 147 75 238 13 . . 187 39 Gun 1083 | . 122 46 . . 32 114 51 97 46 47 . 137 73 171 9 . . 103 35 Cannon 165 | . . . . . . . . 4 2 . . . 1 67 4 . . 83 4 Launcher 11 | . . 3 . . . . . . . . . 7 1 . . . . . . Special 4 | . . . . . . . . . . . . 3 . . . . . 1 . Kinetic 562 | . 122 46 . . 18 57 25 54 16 . . . 41 123 12 . . 44 4 Thermal 645 | . . . . . 14 57 26 43 30 47 . 131 19 101 . . . 142 35 Explosive 8 | . . . . . . . . . . . . 7 1 . . . . . . Electromagnetic 44 | . . 3 . . . . . 4 2 . . 6 14 14 1 . . . . Robot Hit Streak 50 | . 9 12 . . 10 13 11 38 26 30 . 50 19 20 4 . . 9 6 Robot Miss Streak 6 | . 3 6 . . 1 5 2 3 6 1 . 3 2 5 2 . . 5 2 Penetration Max 2 | . . . . . . . . . . . . . 1 2 . . . . . Secondary Targets 23 | . 3 . . . . 4 1 2 2 2 . 2 5 1 . . . 1 . Max Gunslinging Chain 1 | . 1 . . . . 1 1 1 1 1 . 1 1 1 . . . 1 . Shots Hit Robots 894 | . 72 31 . . 23 75 37 87 38 44 . 114 59 139 19 . . 124 32 Core Hits 378 | . 26 18 . . 7 28 12 28 22 18 . 64 37 57 6 . . 44 11 Critical Kills 9 | . . . . . . . . 1 1 . . . . 5 1 . . 1 . Critical Parts Destroyed 9 | . . . . . . . . 2 . . . . 1 5 1 . . . . Critical Strikes 52 | . . . . . . 3 1 6 3 1 . 2 3 17 3 . . 8 5 Burn 17 | . . . . . . 3 1 3 2 1 . 2 1 2 . . . 1 1 Meltdown 1 | . . . . . . . . . . . . . . . . . . 1 . Destroy 19 | . . . . . . . . 3 1 . . . 1 14 . . . . . Blast 7 | . . . . . . . . . . . . . . . 1 . . 5 1 Smash 2 | . . . . . . . . . . . . . . . 2 . . . . Sever 4 | . . . . . . . . . . . . . 1 1 . . . . 2 Impale 2 | . . . . . . . . . . . . . . . . . . 1 1 Melee Attacks 134 | . . . . . . 11 . 20 . 9 . 14 7 21 21 1 . 13 17 Impact 59 | . . . . . . . . . . . . 14 . 16 21 1 . 7 . Slashing 62 | . . . . . . 11 . 20 . 9 . . 7 5 . . . . 10 Piercing 13 | . . . . . . . . . . . . . . . . . . 6 7 Sneak Attacks 8 | . . . . . . . . 1 . . . . . 5 2 . . . . Combat Hostiles 1 | . . . . . . . . 1 . . . . . . . . . . . Follow-up Attacks 1 | . . . . . . . . . . . . . . . . . . . 1 Damage Inflicted 22517 | . 1109 611 . . 325 1116 582 1552 1009 1126 . 2943 1848 3821 833 . . 4399 1243 Guns 16049 | . 1094 454 . . 325 1116 582 1255 847 1126 . 2639 1293 2192 94 . . 2220 812 Cannons 3628 | . . . . . . . . 77 101 . . . . 1322 82 . . 1977 69 Explosions 931 | . . 155 . . . . . . 61 . . 304 411 . . . . . . Melee 1877 | . . . . . . . . 220 . . . . 144 306 657 . . 202 348 Ramming 32 | . 15 2 . . . . . . . . . . . 1 . . . . 14 Kinetic 7347 | . 1094 454 . . 165 554 246 747 217 . . . 827 1753 176 . . 1045 69 Thermal 11708 | . . 25 . . 160 562 336 508 691 1126 . 2538 309 1489 . . . 3152 812 Explosive 498 | . . . . . . . . . . . . 304 194 . . . . . . Electromagnetic 1055 | . . 130 . . . . . 77 101 . . 101 374 272 . . . . . Impact 657 | . . . . . . . . . . . . . . . 657 . . . . Slashing 856 | . . . . . . . . 220 . . . . 144 306 . . . . 186 Piercing 364 | . . . . . . . . . . . . . . . . . . 202 162 Highest Corruption 18 | . 5 5 5 5 . 6 6 6 . 2 . 14 8 18 2 2 2 8 4 Average Corruption 6 | . 2 5 5 5 . 5 6 6 . 1 . 11 4 13 1 2 2 5 3 Corruption Purged 12 | . . . . . . . . . . . . . . 5 . . . 7 . Corruption Blocked 16 | . . . . . . . . . . 7 . . . . . . . . 9 Effects 310 | . 3 27 18 4 . 21 11 41 . 8 . 61 16 51 4 7 . 37 1 Message Errors 63 | . . 9 5 . . 4 3 9 . . . 10 4 9 2 2 . 6 . Matter Fused 71 | . 1 2 5 2 . 3 . 12 . 4 . 17 3 14 2 1 . 5 . Heat Flow Errors 36 | . . 5 1 1 . 2 3 4 . . . 6 2 5 . . . 7 . Energy Discharges 40 | . . 5 4 . . 5 1 4 . 1 . 8 1 5 . . . 5 1 Parts Rejected 1 | . . . . . . . . . . . . . . 1 . . . . . Parts Fused 4 | . . 1 . . . 1 1 . . . . . . . . . . 1 . Data Loss (minor) 43 | . 2 . 3 . . 2 2 7 . . . 11 3 3 . 2 . 8 . Data Loss (major) 17 | . . 3 . 1 . 1 . 1 . . . 5 2 1 . 2 . 1 . Misfires 10 | . . 2 . . . 1 1 1 . 1 . 2 1 1 . . . . . Alerts 8 | . . . . . . 1 . 1 . 2 . 1 . 2 . . . 1 . Misdirections 1 | . . . . . . . . . . . . . . 1 . . . . . Weapon Failures 16 | . . . . . . 1 . 2 . . . 1 . 9 . . . 3 . Overload Shots . | . . . . . . . . . . . . . . . . . . . . Overflow Damage 348 | . . . . . . . . 12 . . . . . 2 173 . . 161 . Projectiles 150 | . . . . . . . . . . . . . . 2 18 . . 130 . Explosions . | . . . . . . . . . . . . . . . . . . . . Melee 198 | . . . . . . . . 12 . . . . . . 155 . . 31 . Knockbacks 27 | . 1 . . . . . . . . . . . . 5 9 . . 12 . Impact 8 | . 1 . . . . . . . . . . . . . 7 . . . . Kinetic 17 | . . . . . . . . . . . . . . 5 . . . 12 . Secondary 2 | . . . . . . . . . . . . . . . 2 . . . . Self-Inflicted Damage 346 | . . 2 . . . . . . 43 . . 149 145 . . . . . 7 Shots 9 | . . 1 . . . . . . 1 . . 3 4 . . . . . . Rammed 1 | . . . . . . . . . . . . . . . . . . . 1 Targets Rammed 5 | . 2 1 . . . . . . . . . . . 1 . . . . 1 Kicked 4 | . 2 1 . . . . . . . . . . . 1 . . . . . Crushed . | . . . . . . . . . . . . . . . . . . . . Highest Temperature 665 | . 36 288 231 216 . 206 256 234 10 14 . 271 131 522 10 . . 665 295 Average Temperature 104 | . 10 97 119 111 . 36 102 49 7 6 . 74 34 128 7 . . 352 115 Received Heat Transfer 4052 | . 192 216 . . 18 351 90 441 120 108 . 813 500 615 9 . . 93 486 Effects 22 | . . 2 . . . . . . . . . . . 10 . . . 10 . Shutdowns 3 | . . . . . . . . . . . . . . 3 . . . . . Energy Bleed 5 | . . 2 . . . . . . . . . . . 2 . . . 1 . Interference 4 | . . . . . . . . . . . . . . 1 . . . 3 . Short Circuit 2 | . . . . . . . . . . . . . . . . . . 2 . Damage (minor) 2 | . . . . . . . . . . . . . . . . . . 2 . Damage (major) 6 | . . . . . . . . . . . . . . 4 . . . 2 . Siege Activations 1 | . . . . . . . . . . . . . . . . . . 1 . Total Turns 28 | . . . . . . . . . . . . . . . . . . 28 . Longest Duration 28 | . . . . . . . . . . . . . . . . . . 28 . Robots Corrupted 2 | . . . . . . . . . . . . 1 . 1 . . . . . Combat Hostiles 2 | . . . . . . . . . . . . 1 . 1 . . . . . Parts Fried 9 | . . . . . . . . . 1 . . 2 1 2 3 . . . . Impact Corruptions 9 | . . . . . . . . . . . . . . . 9 . . . . Robots Melted 9 | . . . . . . . . . 1 1 . 4 . . . . . 2 1 Combat Hostiles 9 | . . . . . . . . . 1 1 . 4 . . . . . 2 1 Parts Melted 51 | . . . . . . 4 1 5 7 4 . 9 3 4 . . . 8 6 Heat Transferred 19906 | . . 50 . . 370 1628 925 1517 1468 1810 . 4626 630 2368 . . . 3663 851 Parts Sabotaged 4 | . . . . . . . . . . . . . 4 . . . . . . Parts Stolen . | . . . . . . . . . . . . . . . . . . . . Parts Stripped . | . . . . . . . . . . . . . . . . . . . . Power Chain Reactions 3 | . . 1 . . . . . . 1 . . . 1 . . . . . . Alert | -11 -10 -10 -10 -9 -8 -8 -8 -8 -7 -7 -6 -6 -5 -5 -4 -4 -4 -3 -2 ------- Run | Yrd Mat Min Exi Min Mat Gar Mat Gar Fac Gar Fac Gar Fac Ext Fac Upp Upp Res Res Peak Influence 1172 | . 277 160 . . 130 552 451 848 559 607 318 1172 1050 883 461 . . 369 251 Initial 615 | . . 79 . . . 84 269 293 445 249 318 222 615 396 417 . . 123 171 Average 393 | . 127 91 . . 52 305 375 562 448 452 318 727 807 594 383 . . 201 128 Maximum Alert Level 4 | . 1 . . . . 2 2 3 2 2 1 4 3 3 2 . . 1 1 Low Security (%) 27 | . 70 100 . 100 100 12 . . . . . . . . . . . 52 75 Level 1 28 | . 29 . . . . 73 80 28 27 17 100 14 . 1 35 . . 47 24 Level 2 32 | . . . . . . 13 19 56 72 82 . 49 29 84 64 . . . . Level 3 10 | . . . . . . . . 15 . . . 27 70 14 . . . . . Level 4 . | . . . . . . . . . . . . 8 . . . . . . . Level 5 . | . . . . . . . . . . . . . . . . . . . . High Security . | . . . . . . . . . . . . . . . . . . . . Max Security . | . . . . . . . . . . . . . . . . . . . . Squads Dispatched 39 | . 3 1 . . 2 . 1 . 1 . . . 7 6 3 . . 12 3 Investigation 9 | . 3 1 . . . . 1 . . . . . . 2 1 . . . 1 Extermination 10 | . . . . . . . . . 1 . . . 2 . 1 . . 4 2 Reinforcement 10 | . . . . . . . . . . . . . 3 3 1 . . 3 . Assault 3 | . . . . . . . . . . . . . 2 1 . . . . . Garrison 7 | . . . . . 2 . . . . . . . . . . . . 5 . Intercept . | . . . . . . . . . . . . . . . . . . . . Searches Triggered . | . . . . . . . . . . . . . . . . . . . . Construction Impeded 2 | . . . . . . . . . . . . . . 2 . . . . . Haulers Reinforced 3 | . . . . . . . . . . . . . 2 . . . . 1 . Active Scanning Responses . | . . . . . . . . . . . . . . . . . . . . Cargo Convoy Interrupts . | . . . . . . . . . . . . . . . . . . . . Alert ID Control Effect 3 | . . . . . . . . . . . . . 3 . . . . . . Stealth | -11 -10 -10 -10 -9 -8 -8 -8 -8 -7 -7 -6 -6 -5 -5 -4 -4 -4 -3 -2 --------- Run | Yrd Mat Min Exi Min Mat Gar Mat Gar Fac Gar Fac Gar Fac Ext Fac Upp Upp Res Res Distress Signals 11 | . 3 1 . . . . . . 1 . . . 1 1 . . . 2 2 Communications Jammed . | . . . . . . . . . . . . . . . . . . . . Distress Signals . | . . . . . . . . . . . . . . . . . . . . Times Spotted 265 | . 22 12 . . 5 19 6 18 11 6 . 33 28 39 7 . . 39 20 Peak Tracking Total 9 | . 7 2 . . 2 4 2 3 5 3 . 7 7 9 2 . . 6 7 Tactical Retreats 17 | . . . . . . 2 . 2 . . . 1 4 3 . . . 3 2 Traps | -11 -10 -10 -10 -9 -8 -8 -8 -8 -7 -7 -6 -6 -5 -5 -4 -4 -4 -3 -2 ------- Run | Yrd Mat Min Exi Min Mat Gar Mat Gar Fac Gar Fac Gar Fac Ext Fac Upp Upp Res Res Traps Triggered 24 | . 4 . . . . 4 2 1 . 1 . 3 3 2 1 . . 3 . Indirectly 3 | . . . . . . . . . . . . . 3 . . . . . . Trap Hack Attempts . | . . . . . . . . . . . . . . . . . . . . Triggered . | . . . . . . . . . . . . . . . . . . . . Disarmed . | . . . . . . . . . . . . . . . . . . . . Reprogrammed . | . . . . . . . . . . . . . . . . . . . . Reused . | . . . . . . . . . . . . . . . . . . . . Traps Extracted . | . . . . . . . . . . . . . . . . . . . . Installed . | . . . . . . . . . . . . . . . . . . . . Triggered . | . . . . . . . . . . . . . . . . . . . . Machines | -11 -10 -10 -10 -9 -8 -8 -8 -8 -7 -7 -6 -6 -5 -5 -4 -4 -4 -3 -2 ---------- Run | Yrd Mat Min Exi Min Mat Gar Mat Gar Fac Gar Fac Gar Fac Ext Fac Upp Upp Res Res Machines Disabled 34 | . . . . . . . . 2 . 1 . 2 23 4 1 . . 1 . Max in Single Turn 6 | . . . . . . . . 1 . 1 . 1 6 1 1 . . 1 . Garrison Access 2 | . . . . . . . . . . . . . . . . . . 1 1 Garrison Relay 3 | . . . . . . . . . . 2 . 1 . . . . . . . Energy Cycler 2 | . . . . . . . . . . . . . . 2 . . . . . Machines Repaired . | . . . . . . . . . . . . . . . . . . . . Machines Dismantled . | . . . . . . . . . . . . . . . . . . . . Machines Sabotaged . | . . . . . . . . . . . . . . . . . . . . Overloaded Fab Kills . | . . . . . . . . . . . . . . . . . . . . Hacking | -11 -10 -10 -10 -9 -8 -8 -8 -8 -7 -7 -6 -6 -5 -5 -4 -4 -4 -3 -2 --------- Run | Yrd Mat Min Exi Min Mat Gar Mat Gar Fac Gar Fac Gar Fac Ext Fac Upp Upp Res Res Machines Accessed 44 | . 7 2 1 . 1 2 5 2 4 3 1 1 1 6 1 . . 5 2 Terminals 30 | . 5 1 . . . 2 2 2 2 3 . 1 . 6 1 . . 4 1 Fabricators . | . . . . . . . . . . . . . . . . . . . . Repair Stations 2 | . . . . . . . 1 . . . . . 1 . . . . . . Recycling Units 2 | . 2 . . . . . . . . . . . . . . . . . . Scanalyzers 2 | . . . . . . . 1 . 1 . . . . . . . . . . Garrison Access 6 | . . . . . 1 . 1 . 1 . 1 . . . . . . 1 1 Total Hacks 91 | . 15 4 1 . 2 2 8 5 9 5 1 3 4 18 3 . . 7 4 Successful 37 | . 8 2 1 . 1 2 4 1 5 3 1 . 2 3 . . . 1 3 Failed 54 | . 7 2 . . 1 . 4 4 4 2 . 3 2 15 3 . . 6 1 Catastrophic 12 | . 2 . . . . . 2 1 . . . 1 . 3 2 . . 1 . Database Lockouts . | . . . . . . . . . . . . . . . . . . . . Manual 23 | . 6 3 1 . . . 1 . 1 . . . . . 3 . . 6 2 Terminals 69 | . 11 3 . . . 2 3 5 7 5 . 3 . 18 3 . . 6 3 Fabricators . | . . . . . . . . . . . . . . . . . . . . Repair Stations 7 | . . . . . . . 3 . . . . . 4 . . . . . . Recycling Units 4 | . 4 . . . . . . . . . . . . . . . . . . Scanalyzers 2 | . . . . . . . 1 . 1 . . . . . . . . . . Garrison Access 7 | . . . . . 2 . 1 . 1 . 1 . . . . . . 1 1 Terminal Hacks 23 | . 6 2 1 . . 2 . 1 3 3 . . . 3 . . . . 2 Record 2 | . . . . . . . . . . . . . . . . . . . 2 Prototype ID Bank 2 | . 1 . . . . . . . 1 . . . . . . . . . . Open Door 3 | . . 1 . . . 1 . . . . . . . 1 . . . . . Branch Access Points 2 | . 1 1 . . . . . . . . . . . . . . . . . Emergency Access Points 1 | . . . . . . . . . . 1 . . . . . . . . . Recycling Unit Index 1 | . 1 . . . . . . . . . . . . . . . . . . Alert Level 2 | . 1 . . . . . . . 1 . . . . . . . . . . Transport Status 1 | . . . . . . . . . 1 . . . . . . . . . . Reinforcement Status 1 | . . . . . . . . . . . . . . 1 . . . . . Registered Components 1 | . 1 . . . . . . . . . . . . . . . . . . Zone Layout 2 | . 1 . . . . . . . . . . . . 1 . . . . . Garrison Registry 2 | . . . . . . . . 1 . 1 . . . . . . . . . Patrol Navigation 1 | . . . . . . . . . . 1 . . . . . . . . . Security Stations 1 | . . . . . . 1 . . . . . . . . . . . . . Derelict Proto ID Bank 1 | . . . 1 . . . . . . . . . . . . . . . . Fabricator Hacks . | . . . . . . . . . . . . . . . . . . . . Repair Station Hacks 4 | . . . . . . . 2 . . . . . 2 . . . . . . Scan Component 2 | . . . . . . . 1 . . . . . 1 . . . . . . Repair 2 | . . . . . . . 1 . . . . . 1 . . . . . . Recycling Unit Hacks 1 | . 1 . . . . . . . . . . . . . . . . . . Retrieve Components 1 | . 1 . . . . . . . . . . . . . . . . . . Scanalyzer 2 | . . . . . . . 1 . 1 . . . . . . . . . . Insert Component 2 | . . . . . . . 1 . 1 . . . . . . . . . . Garrison Access Hacks 6 | . . . . . 1 . 1 . 1 . 1 . . . . . . 1 1 Unlock Access 4 | . . . . . 1 . 1 . 1 . 1 . . . . . . . . Seal Access 2 | . . . . . . . . . . . . . . . . . . 1 1 Unauthorized Hacks 1 | . 1 . . . . . . . . . . . . . . . . . . Terminals 1 | . 1 . . . . . . . . . . . . . . . . . . Botnet 1 | . 1 . . . . . . . . . . . . . . . . . . Fabricators . | . . . . . . . . . . . . . . . . . . . . Repair Stations . | . . . . . . . . . . . . . . . . . . . . Recycling Units . | . . . . . . . . . . . . . . . . . . . . Scanalyzers . | . . . . . . . . . . . . . . . . . . . . Garrison Access . | . . . . . . . . . . . . . . . . . . . . Data Cores Recovered . | . . . . . . . . . . . . . . . . . . . . Used . | . . . . . . . . . . . . . . . . . . . . Hacking Detections 26 | . 4 . . . 1 1 2 2 2 2 1 1 . 4 1 . . 4 1 Full Trace Events 6 | . 2 . . . . . . . . . . . . 2 1 . . . 1 Feedback Events 2 | . . . . . . . . . . . . . . . . . . . 2 Hackware Fried 2 | . . . . . . . . . . . . . . . . . . . 2 Feedback Blocked . | . . . . . . . . . . . . . . . . . . . . Robot Schematics Acquired . | . . . . . . . . . . . . . . . . . . . . Robots Built . | . . . . . . . . . . . . . . . . . . . . Authchips . | . . . . . . . . . . . . . . . . . . . . Time . | . . . . . . . . . . . . . . . . . . . . Total Robot Build Rating . | . . . . . . . . . . . . . . . . . . . . Part Schematics Acquired . | . . . . . . . . . . . . . . . . . . . . Parts Built . | . . . . . . . . . . . . . . . . . . . . Authchips . | . . . . . . . . . . . . . . . . . . . . Time . | . . . . . . . . . . . . . . . . . . . . Total Part Build Rating . | . . . . . . . . . . . . . . . . . . . . Parts Repaired 2 | . . . . . . . 1 . . . . . 1 . . . . . . Time 76 | . . . . . . . 38 . . . . . 38 . . . . . . Parts Recycled . | . . . . . . . . . . . . . . . . . . . . Recycled Matter . | . . . . . . . . . . . . . . . . . . . . Retrieved Matter . | . . . . . . . . . . . . . . . . . . . . Retrieved Components 1 | . 1 . . . . . . . . . . . . . . . . . . Parts Scanalyzed . | . . . . . . . . . . . . . . . . . . . . Part Schematics Acquired . | . . . . . . . . . . . . . . . . . . . . Parts Damaged . | . . . . . . . . . . . . . . . . . . . . Bothacking | -11 -10 -10 -10 -9 -8 -8 -8 -8 -7 -7 -6 -6 -5 -5 -4 -4 -4 -3 -2 ------------ Run | Yrd Mat Min Exi Min Mat Gar Mat Gar Fac Gar Fac Gar Fac Ext Fac Upp Upp Res Res Used RIF Installer 5 | . . . . . . 1 . 2 . 1 . 1 . . . . . . . Hotswap 1 | . . . . . . . . . . . . 1 . . . . . . . Command Fork 1 | . . . . . . . . 1 . . . . . . . . . . . Watcher Feeds 1 | . . . . . . . . 1 . . . . . . . . . . . Alert ID Control 1 | . . . . . . . . . . 1 . . . . . . . . . Robots Hacked 2 | . . . . . . . . . . . . 2 . . . . . . . Non-combat . | . . . . . . . . . . . . . . . . . . . . Combat 2 | . . . . . . . . . . . . 2 . . . . . . . Robot Hacks Applied 2 | . . . . . . . . . . . . 2 . . . . . . . formatsys_high 2 | . . . . . . . . . . . . 2 . . . . . . . Relay Couplers Released 12 | . . . . . . . . . . 8 . 4 . . . . . . . Machine Destruction 12 | . . . . . . . . . . 8 . 4 . . . . . . . Attached 3 | . . . . . . . . . . . . 3 . . . . . . . Fabnet Peak Effective % . | . . . . . . . . . . . . . . . . . . . . Robots Rewired . | . . . . . . . . . . . . . . . . . . . . Allies Hacked 1 | . . . . . . . . . . . . . . 1 . . . . . Hacks Repelled . | . . . . . . . . . . . . . . . . . . . . Allies | -11 -10 -10 -10 -9 -8 -8 -8 -8 -7 -7 -6 -6 -5 -5 -4 -4 -4 -3 -2 -------- Run | Yrd Mat Min Exi Min Mat Gar Mat Gar Fac Gar Fac Gar Fac Ext Fac Upp Upp Res Res Total Allies 13 | . . 1 . . . . . . . 2 . 2 . 8 . . . . . Largest Group 4 | . . 1 1 . . . . . . 2 2 2 2 4 . . . . . Highest-Rated Group 198 | . . 31 31 . . . . . . 157 157 157 82 198 . . . . . Highest-Rated Ally 159 | . . 31 31 . . . . . . 95 95 95 41 159 . . . . . Total Orders . | . . . . . . . . . . . . . . . . . . . . Ally Attacks 128 | . . 7 . . . . . . . . . 22 14 85 . . . . . Total Damage 3162 | . . 84 . . . . . . . . . 1037 384 1657 . . . . . Kills 28 | . . 1 . . . . . . . . . 11 3 13 . . . . . Allies Corrupted . | . . . . . . . . . . . . . . . . . . . . Allies Melted 1 | . . . . . . . . . . 1 . . . . . . . . . Intel | -11 -10 -10 -10 -9 -8 -8 -8 -8 -7 -7 -6 -6 -5 -5 -4 -4 -4 -3 -2 ------- Run | Yrd Mat Min Exi Min Mat Gar Mat Gar Fac Gar Fac Gar Fac Ext Fac Upp Upp Res Res Robot Analysis Total . | . . . . . . . . . . . . . . . . . . . . Derelict Logs Recovered 5 | . . 1 . 1 . . . . . . . . . . . 3 . . . Drone Launches . | . . . . . . . . . . . . . . . . . . . . Drone Recoveries . | . . . . . . . . . . . . . . . . . . . . Exploration | -11 -10 -10 -10 -9 -8 -8 -8 -8 -7 -7 -6 -6 -5 -5 -4 -4 -4 -3 -2 ------------- Run | Yrd Mat Min Exi Min Mat Gar Mat Gar Fac Gar Fac Gar Fac Ext Fac Upp Upp Res Res Turns Passed 15439 | . 1132 974 664 277 158 1390 371 1415 818 665 111 1632 963 1092 622 353 18 2011 773 Spaces Moved 7900 | 1 433 338 255 105 54 580 173 708 429 330 65 753 739 495 404 297 16 1108 617 Core 7 | . . . . . . . . . . . . . 7 . . . . . . Treads 2991 | . . . . . . 218 173 708 429 330 65 679 . . . . . 243 146 Legs 4008 | 1 433 338 255 105 54 362 . . . . . 74 540 421 404 297 16 708 . Wheels 240 | . . . . . . . . . . . . . . . . . . 157 83 Hover 181 | . . . . . . . . . . . . . . . . . . . 181 Flight 473 | . . . . . . . . . . . . . 192 74 . . . . 207 Fastest Speed 37 | 120 120 260 260 260 190 160 160 162 165 170 170 117 37 37 115 115 115 112 39 Average Speed 151 | 120 215 260 260 260 190 179 161 162 165 170 170 168 96 107 117 115 115 125 88 Slowest Speed 470 | 120 470 260 260 260 190 470 162 165 170 170 170 250 190 190 120 115 115 410 190 Overloaded Moves . | . . . . . . . . . . . . . . . . . . . . Propulsion Burnouts . | . . . . . . . . . . . . . . . . . . . . Robots Hopped 5 | . . . . . . . . . . . . . 3 . . . . . 2 Cave-ins Triggered 1 | . . . . . . . . . . . . . . . . . . . 1 Exploration Rate (%) 36 | 2 76 73 47 39 6 55 21 67 14 48 4 73 17 67 12 56 5 35 14 Regions Visited 19 Branch Regions 6 Pre-discovered Areas . | . . . . . . . . . . . . . . . . . . . . Known Exits Taken 8 | . 1 . . . 1 . 1 . 1 . 1 . . 1 . 1 1 . . Unknown Exits Taken 7 | 1 . 1 1 1 . . . . . . . . 1 . 1 . . 1 . Scrap Searched 5 | . . 1 . 1 . . . . . . . . . . . 3 . . . Spaces Dug 55 | . . . . . . . . . . . . 18 . 13 3 1 . 11 9 Terrain Destroyed 170 | . . 3 . . . . . . 6 . . 50 7 46 4 1 . 33 20 Melee 21 | . . . . . . . . . . . . 7 . 2 3 1 . 5 3 Projectile 95 | . . . . . . . . . 3 . . . 2 44 1 . . 28 17 AOE 54 | . . 3 . . . . . . 3 . . 43 5 . . . . . . Terrain Rammed . | . . . . . . . . . . . . . . . . . . . . Walls Destroyed . | . . . . . . . . . . . . . . . . . . . . Machines Disabled . | . . . . . . . . . . . . . . . . . . . . Actions | -11 -10 -10 -10 -9 -8 -8 -8 -8 -7 -7 -6 -6 -5 -5 -4 -4 -4 -3 -2 --------- Run | Yrd Mat Min Exi Min Mat Gar Mat Gar Fac Gar Fac Gar Fac Ext Fac Upp Upp Res Res Total 9952 | . 533 397 258 111 80 807 216 843 493 372 66 938 903 801 497 306 15 1533 783 Wait 443 | . 8 2 . 5 . 75 8 11 9 . . 10 60 21 10 . . 165 59 Move 7867 | . 432 337 254 104 53 578 172 706 428 328 64 751 732 494 403 296 15 1107 613 Hop 5 | . . . . . . . . . . . . . 3 . . . . . 2 Pick Up 186 | . 11 8 2 1 2 14 4 7 10 4 . 17 13 29 15 1 . 33 15 Fast Attach 145 | . 4 . . . 1 10 . 3 2 1 1 14 20 22 13 1 . 34 19 Attach 110 | . 1 2 . . 5 8 1 3 3 2 . 13 12 15 6 2 . 11 26 Detach 41 | . 2 . . . 1 3 . . . . . 5 3 4 4 2 . 8 9 Swap 123 | . 6 7 . . 2 13 2 22 5 1 . 13 7 24 4 2 . 13 2 Drop 206 | . 6 9 2 1 . 18 4 17 11 4 1 20 14 28 14 1 . 48 8 Fire 632 | . 61 31 . . 16 57 25 54 25 23 . 81 32 106 7 . . 101 13 Melee 133 | . . . . . . 11 . 20 . 9 . 14 7 21 21 1 . 13 16 Ram 1 | . . . . . . . . . . . . . . . . . . . 1 Kick 4 | . 2 1 . . . . . . . . . . . 1 . . . . . Crush . | . . . . . . . . . . . . . . . . . . . . Escape Stasis 56 | . . . . . . 20 . . . . . . . 36 . . . . . Rewire . | . . . . . . . . . . . . . . . . . . . . Trap . | . . . . . . . . . . . . . . . . . . . . Miscellaneous . | . . . . . . . . . . . . . . . . . . . . Route ------- -11/Scrapyard -10/Materials (discovered 3 exits: [*Mat] / *Min / [*Sub]) -10/Mines (discovered 3 exits: [*Mat x2] / *Exi) -10/Exiles -9/Mines -8/Materials (discovered 4 exits: Fac / *Sto x2 / Gar) -8/Garrison (discovered 2 exits: *Mat x2) -8/Materials -8/Garrison (discovered 4 exits: *Fac x3 / [*Mat]) -7/Factory (discovered 2 exits: *Fac / Gar) -7/Garrison (discovered 3 exits: *Fac x3) -6/Factory -6/Garrison (discovered 3 exits: *Fac x3) -5/Factory -5/Extension (discovered 2 exits: *Fac / *Cet) -4/Factory (discovered 2 exits: *Res / [*Upp]) -4/Upper Caves -4/Upper Caves -3/Research -2/Research (discovered 1 exit: Qua) History --------- Turn | Location | Event 1 | -11/Scrapyard | Discovered new exit (range 0) 1 | -11/Scrapyard | Entered Materials 299 | -10/Materials | Identified exit to Mines 302 | -10/Materials | Build established: Mutant 456 | -10/Materials | Discovered new exit (range 9) 1042 | -10/Materials | Discovered new exit (range 9) 1133 | -10/Materials | Entered Mines 1154 | -10/Mines | Discovered new exit (range 5) 1161 | -10/Mines | Build established: Scavenger-Mutant 1240 | -10/Mines | Met a Derelict shopkeep closing up shop 1594 | -10/Mines | Excavation squad dispatched 1594 | -10/Mines | A large section of the Mines collapsed 1659 | -10/Mines | Core integrity fell below 50% 1756 | -10/Mines | Discovered new exit (range 11) 1957 | -10/Mines | Learned Materials trap positions 1965 | -10/Mines | Received a Mining Laser from a helpful Derelict 2094 | -10/Mines | Deemed a non-threat by the Exiles lab entrance 2094 | -10/Mines | Discovered new exit (range 6) 2107 | -10/Mines | Entered Exiles 2107 | -10/Exiles | Accompanied by 1 ally 2172 | -10/Exiles | Met 8R-AWN 2217 | -10/Exiles | Met EX-HEX 2289 | -10/Exiles | Met EX-BIN 2318 | -10/Exiles | Aligned with FarCom system 2321 | -10/Exiles | Given EX-Vault access code 2383 | -10/Exiles | Opened EX-Vault 2407 | -10/Exiles | Found Modified TNC 2463 | -10/Exiles | Warned to stay clear of 0b10 Research branches 2742 | -10/Exiles | Discovered new exit (range 14) 2771 | -10/Exiles | Left Exiles lab with Modified TNC 2771 | -10/Exiles | Entered Mines 2956 | -9/Mines | Learned 4 Materials zone layouts 2987 | -9/Mines | Found a hidden stash of uninstalled traps 3041 | -9/Mines | Discovered new exit (range 4) 3048 | -9/Mines | Entered Materials 3048 | -8/Materials | Evolved 4 slots: Propulsion x2, Utility x2 3049 | -8/Materials | Identified exit to Storage 3049 | -8/Materials | Identified exit to Factory 3050 | -8/Materials | Loaded intel: 19 trap records 3092 | -8/Materials | Garrison activated, responded to threat 3157 | -8/Materials | Discovered exit to Storage (range 12) 3204 | -8/Materials | Identified exit to Garrison 3206 | -8/Materials | Entered Garrison 3235 | -8/Garrison | Learned Materials security intel 3268 | -8/Garrison | Triggered checkpoint 3898 | -8/Garrison | Triggered checkpoint 3941 | -8/Garrison | Lost 3 parts (2n1w) 4063 | -8/Garrison | Discovered new exit (range 10) 4112 | -8/Garrison | Triggered checkpoint 4462 | -8/Garrison | Triggered checkpoint 4554 | -8/Garrison | Discovered new exit (range 12) 4567 | -8/Garrison | Installed Relay Interface Framework 4596 | -8/Garrison | Entered Materials 4726 | -8/Materials | Repaired Katana 4910 | -8/Materials | Build established: Scavenger-Skirmisher 4965 | -8/Materials | Identified exit to Garrison 4967 | -8/Materials | Entered Garrison 4989 | -8/Garrison | Triggered checkpoint 5131 | -8/Garrison | Triggered checkpoint 5256 | -8/Garrison | Build established: Scavenger-Mutant 5283 | -8/Garrison | Discovered new exit (range 6) 5363 | -8/Garrison | Triggered checkpoint 5366 | -8/Garrison | Triggered checkpoint 5506 | -8/Garrison | Discovered exit to Factory (range 15) 5536 | -8/Garrison | Core integrity fell below 50% 5633 | -8/Garrison | Triggered checkpoint 5797 | -8/Garrison | Discovered exit to Factory (range 11) 5797 | -8/Garrison | Discovered exit to Factory (range 69) 5797 | -8/Garrison | Discovered exit to Factory (range 95) 5797 | -8/Garrison | Discovered new exit (range 45) 6171 | -8/Garrison | Triggered checkpoint 6189 | -8/Garrison | Expanded RIF knowledge: Command Fork 6281 | -8/Garrison | Build established: Mutant 6356 | -8/Garrison | Expanded RIF knowledge: Watcher Feeds 6382 | -8/Garrison | Entered Factory 6382 | -7/Factory | Evolved 2 slots: Utility x1, Weapon x1 6948 | -7/Factory | Build established: Scavenger-Mutant 7018 | -7/Factory | Discovered new exit (range 16) 7199 | -7/Factory | Identified exit to Garrison 7200 | -7/Factory | Entered Garrison 7260 | -7/Garrison | Warlord forces raided the area 7282 | -7/Garrison | Triggered checkpoint 7306 | -7/Garrison | Triggered checkpoint 7306 | -7/Garrison | Garrison Relay disabled 7356 | -7/Garrison | Triggered checkpoint 7404 | -7/Garrison | Triggered checkpoint 7447 | -7/Garrison | Build established: Mutant 7464 | -7/Garrison | Triggered checkpoint 7554 | -7/Garrison | Triggered checkpoint 7690 | -7/Garrison | Discovered new exit (range 56) 7690 | -7/Garrison | Discovered new exit (range 59) 7690 | -7/Garrison | Discovered new exit (range 10) 7708 | -7/Garrison | Triggered checkpoint 7751 | -7/Garrison | Found embedded Infiltrators 7760 | -7/Garrison | Triggered checkpoint 7797 | -7/Garrison | Expanded RIF knowledge: Alert ID Control 7809 | -7/Garrison | Garrison Relay disabled 7865 | -7/Garrison | Entered Factory 7865 | -6/Factory | Accompanied by 2 allies 7865 | -6/Factory | Evolved 2 slots: Utility x2 7975 | -6/Factory | Identified exit to Garrison 7976 | -6/Factory | Entered Garrison 7976 | -6/Garrison | Accompanied by 2 allies 8025 | -6/Garrison | System corruption reached 10% 8298 | -6/Garrison | Triggered checkpoint 8372 | -6/Garrison | Triggered checkpoint 8382 | -6/Garrison | Triggered checkpoint 8393 | -6/Garrison | Destroyed 7 combat bots 8506 | -6/Garrison | Discovered new exit (range 8) 8568 | -6/Garrison | Triggered checkpoint 8675 | -6/Garrison | Lost 7 parts (4n2u1w) 8869 | -6/Garrison | Discovered new exit (range 15) 9004 | -6/Garrison | Build established: Scavenger-Mutant 9086 | -6/Garrison | Triggered checkpoint 9135 | -6/Garrison | Garrison Relay disabled 9373 | -6/Garrison | Discovered new exit (range 10) 9438 | -6/Garrison | Build established: Bothacker-Mutant 9448 | -6/Garrison | Triggered checkpoint 9527 | -6/Garrison | Expanded RIF knowledge: Hotswap 9608 | -6/Garrison | Entered Factory 9608 | -5/Factory | Accompanied by 2 allies 9608 | -5/Factory | Evolved 2 slots: Utility x2 9824 | -5/Factory | Repaired Great Maul 9894 | -5/Factory | Build established: Scavenger-Mutant 10208 | -5/Factory | First assault squad dispatched 10483 | -5/Factory | Lost 18 parts (2p6n5u5w) 10510 | -5/Factory | Core integrity fell below 50% 10563 | -5/Factory | Discovered new exit (range 22) 10571 | -5/Factory | Entered Extension 10577 | -5/Extension | Lost 6 parts (1p3n2u) 10587 | -5/Extension | Rescued a captive Derelict 10588 | -5/Extension | Rescued a captive Derelict 10644 | -5/Extension | Rescued a captive Derelict 10645 | -5/Extension | Rescued a captive Derelict 10694 | -5/Extension | System corruption reached 10% 10840 | -5/Extension | Lost 3 allies 10946 | -5/Extension | Disrupted transfer network 10974 | -5/Extension | Lost 3 parts (1n2w) 11108 | -5/Extension | Core integrity fell below 20% 11156 | -5/Extension | Lost 7 parts (3n2u2w) 11235 | -5/Extension | Build established: Scavenger-Skirmisher 11247 | -5/Extension | Rescued a captive Derelict 11249 | -5/Extension | Rescued a captive Derelict 11382 | -5/Extension | Energy Cycler disabled 11382 | -5/Extension | Rescued a captive Derelict 11383 | -5/Extension | Rescued a captive Derelict 11389 | -5/Extension | Rescued a captive Derelict 11401 | -5/Extension | Rescued A7 11471 | -5/Extension | First assault squad dispatched 11605 | -5/Extension | Discovered new exit (range 10) 11606 | -5/Extension | Discovered new exit (range 6) 11615 | -5/Extension | Identified exit to Cetus 11634 | -5/Extension | P-70 Sage assimilated allied Z6-I9L(h) 11652 | -5/Extension | Disrupted transfer network 11662 | -5/Extension | Identified exit to Factory 11663 | -5/Extension | Entered Factory 11663 | -4/Factory | Evolved 2 slots: Propulsion x2 11686 | -4/Factory | Build established: Scavenger-Gunner 11790 | -4/Factory | Discovered new exit (range 5) 11797 | -4/Factory | Identified exit to Research 12146 | -4/Factory | Discovered new exit (range 8) 12148 | -4/Factory | Build established: Scavenger-Assassin 12285 | -4/Factory | Entered Upper Caves 12286 | -4/Upper Caves | Encountered a Warlord checkpoint 12541 | -4/Upper Caves | Learned Research terminal intel 12578 | -4/Upper Caves | Build established: Scavenger-Mutant 12603 | -4/Upper Caves | Identified exit to Upper Caves 12638 | -4/Upper Caves | Entered another Upper Caves area 12638 | -4/Upper Caves | Discovered exit to Research (range 5) 12639 | -4/Upper Caves | Encountered a Warlord checkpoint 12656 | -4/Upper Caves | Entered Research 12656 | -3/Research | Evolved 2 slots: Power x1, Utility x1 12657 | -3/Research | Loaded intel: 22 terminal locations 12957 | -3/Research | Build established: Scavenger-Assassin 13363 | -3/Research | Garrison activated, responded to threat 13705 | -3/Research | Found Enh. Force Lance 13751 | -3/Research | Garrison activated, responded to threat 13796 | -3/Research | Lost 3 parts (3n) 13913 | -3/Research | Spotted B-86 Titan 14135 | -3/Research | Found Prototype Processor 14135 | -3/Research | Identified Exp. Target Analyzer 14241 | -3/Research | Lost 3 parts (1n1u1w) 14532 | -3/Research | Found Enh. Force Lance 14562 | -3/Research | Discovered new exit (range 9) 14667 | -3/Research | Entered another Research area 14667 | -2/Research | Evolved 2 slots: Utility x1, Weapon x1 14668 | -2/Research | Identified exit to Quarantine 14701 | -2/Research | Imp. Hacking Suite fried by hacking feedback 14701 | -2/Research | Adv. Hacking Suite fried by hacking feedback 14913 | -2/Research | Spotted B-90 Cyclops 14928 | -2/Research | Crushed by falling debris 15031 | -2/Research | Spotted B-90 Cyclops 15151 | -2/Research | Lost 19 parts (2p6n6u5w) 15318 | -2/Research | Core integrity fell below 50% 15368 | -2/Research | Lost 5 parts (2p2n1u) 15406 | -2/Research | Core integrity fell below 20% 15440 | -2/Research | Destroyed by P-80 Master with Gamma Rifle Last Messages --------------- H-88 Terminator Adv. Phase Shifter severed. Penetrated by Slug. Adv. Corruption Screen intercepted 1% system corruption. Antigrav Array destroyed. Penetrated by Slug. Sml. Battery destroyed. Adv. Corruption Screen destroyed. Penetrated by Slug. Imp. Hacking Suite destroyed. Slug penetrates Wall. Penetrated by Slug. Chainsword destroyed. Slammed into M-36 Artificer. Slug penetrates Wall. Penetrated by Slug. Hacking Suite destroyed. System corrupted: Energy discharge (-1). Enh. Force Lance destroyed. Imp. Gyrokinetic Inverter destroyed. Slug penetrates P-80 Master. Map ----- +----------------------------------------------------+ | ???????????# # =!% | | ???????????# # * | | ???????????# # % | | ???????????#! # | | ???????????# ### ############+##### | | ???###?????# #?# #????????? # | | ####T #????# ### #???????? # | | ???+ ### #??????? # | | ?? ???# ### #?????! # | | ???# ??# ?## ##??? # | | ???# ??####+########?# #?? # | | ???# ????# #????????# #?###"##############" | | ???# ##### #????????# #??? #???????# | | ???# #????????## #########?????# ] | | ???# #?????????# # #?????# /] | | ???# = ########### # #?????# ] | | ???# "" = + #?????# | | ???# """ = #####+##### # #?????# | | ???# "R #?? !??# # ! #?????# | | ???# """ # #?# #?#######?????# | | ???# """ # ! ] #?# #???????????####"#"### | | ?# # ###p####????????# | | ?# ##+####### #?????#### | | ?### ##########h | | ???# p h ; = | | ???# @ ################+## | | ???# ##+#########+## #???????# +!#? | | ???# # ## #######???????# # ## | | ???######### ## #?????????????# # | | ?????????# " " #?????????????# + | | ?????????### ## #?????????????# # | | ???????????# ## #?????????????# #+## | | ???????????# ## * #?????????????######## | | ???????????######### #????????????????????# | | ???????????????????#######????????????????????# | | ??????????????????????????????????????????????# | | ??????????????????????????????????????????????#### | | | | | | | | | | | | | | | | | | | | | | | | | | | +----------------------------------------------------+ Best States ------------- Heat Dissipation 91 Energy Generation 39 Energy Capacity 900 Matter Stores 449 Matter Capacity 500 Sight Range 22 Robot Scan Range 15 Terrain Scan Density 10 ECM Strength 2 Power Amplification 20 Additional Mass Support 9 Base Temperature (-) 200 EM Shielding 3 Corruption Block 20 Armor Coverage 225 Resistance: EM 15 Propulsion Shielding 66 Utility Shielding 66 Phase Shifting 15 Evasion (%) 62 Targeting Accuracy 16 Target Analysis 12 Armor Integrity Analysis 40 Recoil Reduction 4 Particle Charging 25 Kinecelleration 40 Offensive Hacking 26 Defensive Hacking 14 Relay Coupler Types 1 Relay Coupler Value 15 Item Schematics ----------------- None Robot Schematics ------------------ None Fabricated ------------ Nothing Alien Tech Used ----------------- None Achievements -------------- None Challenges ------------ None Game ------ Seed HackingStorageShotgun Manual? 0 Play Time 05:04:51 Cumulative 125.9 hours Start 2024.05.07 @ 10:52:42 End 2024.05.08 @ 23:43:54 Sessions 7 Manual Loads 0 Difficulty Rogue Special Mode None Game No. 213 Rogue 211 Adventurer 2 Explorer 0 Win Type - Total 4 Types 3/0/0/1/0/0/0/0/0 Lore% 59 Gallery% 61 Achievement% 47 Wizard Run 0 Options --------- Layout 0 ASCII 0 Keyboard 1 Movement Numpad Keybinds 1 Fullscreen 2 Font 18/SmallcapsGlow Map View 76x50 Zoom Use 0% Tactical HUD 1 Map Filters NONE Filters NONE Steam 1 RUN: bf88ad18-7485-48e9-9387-02160556aa80